bitfinex-derivatives/quotes_ETHF0:USTF0_20251211
["timestamp","ask_amount","ask_price","bid_price","bid_amount"]
[1765452725048,1.6236252,3197.3,3197.2,0.96397]
[1765452729553,1.6236252,3197.3,3197.2,0.15637]
[1765452733546,1.6236252,3197.3,3197.2,0.87477]
[1765452735757,1.6236252,3197.3,3197.2,0.15637]
[1765452738654,0.0003252,3197.3,3197.2,0.15637]
[1765452738852,1.4417252,3197.3,3197.2,0.88977]
[1765452739758,2.58915651,3197.3,3197.2,0.88977]
[1765452740260,2.58915651,3197.3,3197.2,1.63317]
[1765452743261,2.58915651,3197.3,3197.2,0.88977]
[1765452746364,2.58915651,3197.3,3197.2,0.15637]
[1765452748467,2.58915651,3197.3,3197.2,0.88977]
[1765452748665,2.58915651,3197.3,3197.2,0.15637]
[1765452749868,2.58915651,3197.3,3197.2,0.88977]
[1765452750068,2.58915651,3197.3,3197.2,0.15637]
[1765452755971,2.58915651,3197.3,3197.2,0.88977]
[1765452757672,2.58915651,3197.3,3197.2,0.15637]
[1765452757873,2.58915651,3197.3,3197.2,0.88447]
[1765452758274,2.58915651,3197.3,3197.2,0.15637]
[1765452760876,2.58915651,3197.3,3197.2,0.88447]
[1765452761078,2.58915651,3197.3,3197.2,1.59007]
[1765452762670,2.58915651,3197.3,3197.2,0.15637]
[1765452763071,2.58915651,3197.3,3197.2,4.07578511]
[1765452763276,2.58915651,3197.3,3196.9,5.59774565]
[1765452763277,1.739,3197.0,3196.9,5.59774565]
[1765452763479,1.739,3197.0,3196.9,0.00469403]
[1765452764474,4.03386262,3197.0,3196.9,0.00469403]
[1765452768177,2.88643131,3197.0,3196.9,0.00469403]
[1765452768377,4.03386262,3197.0,3196.9,0.00469403]
[1765452770078,1.4096,3196.9,3196.8,0.15639]
[1765452772878,2.55703131,3196.9,3196.8,0.88449]
[1765452773181,2.55703131,3196.9,3196.8,0.15639]
[1765452773885,2.55703131,3196.9,3196.8,1.59009]
[1765452774384,2.55703131,3196.9,3196.8,0.15639]
[1765452774585,3.55683131,3197.0,3196.9,1.59008]
[1765452774885,4.27423131,3197.0,3196.9,1.59008]
[1765452775079,4.96643131,3197.0,3196.9,1.59008]
[1765452775286,4.96643131,3197.0,3196.9,0.88448]
[1765452775487,4.96643131,3197.0,3196.9,0.15638]
[1765452775785,6.33456262,3197.0,3196.9,0.15638]
[1765452776179,5.18713131,3197.0,3196.9,0.15638]
[1765452780880,6.33456262,3197.0,3196.9,0.15638]
[1765452782291,1.4096,3196.8,3196.7,0.00278994]
[1765452782486,2.55703131,3196.8,3196.7,0.00278994]
[1765452782689,2.52901264,3196.8,3196.7,0.00278994]
[1765452787396,1.6467,3196.6,3196.4,7.12279637]
[1765452787596,1.6467,3196.1,3196.0,3.91834376]
[1765452787797,2.76611264,3196.1,3196.0,3.91834376]
[1765452788092,2.76611264,3196.1,3195.9,0.15643]
[1765452788093,1.6467,3196.0,3195.9,0.15643]
[1765452788293,1.6467,3196.0,3195.9,0.15911532]
[1765452788500,1.6467,3196.0,3195.9,1.01831532]
[1765452789407,1.6467,3196.0,3195.9,0.15911532]
[1765452789907,2.1273,3196.0,3195.9,0.15911532]
[1765452790207,1.6467,3195.7,3195.6,3.21249403]
[1765452790404,2.76611264,3195.7,3195.6,3.21249403]
[1765452791206,2.76611264,3195.7,3195.6,3.21547667]
[1765452791704,2.76611264,3195.7,3195.6,3.37192667]
[1765452795209,2.76611264,3195.7,3195.6,0.16412667]
[1765452796410,2.76611264,3195.7,3195.6,0.00767667]
[1765452796608,1.8658,3195.3,3195.2,3.91521583]
[1765452796812,2.0172,3195.1,3195.0,0.15647]
[1765452797513,2.0172,3195.1,3194.6,3.2078]
[1765452797514,2.0172,3194.7,3194.6,3.3643]
[1765452797709,2.02089402,3194.7,3194.6,4.37541472]
[1765452798212,2.02089402,3194.7,3194.6,3.36741472]
[1765452798413,2.02089402,3194.7,3194.6,0.15961472]
[1765452801419,0.99529402,3194.7,3194.6,2.18161472]
[1765452801916,2.02089402,3194.7,3194.6,2.18161472]
[1765452802919,0.99529402,3194.7,3194.6,2.18161472]
[1765452803418,2.02089402,3194.7,3194.6,2.18161472]
[1765452804415,3.14030666,3194.7,3194.6,0.15961472]
[1765452805820,3.14030666,3194.7,3194.6,2.18161472]
[1765452806615,0.00369402,3194.7,3194.6,2.18161472]
[1765452806917,0.99529402,3194.7,3194.6,2.18161472]
[1765452807118,2.02089402,3194.7,3194.6,2.18161472]
[1765452807821,0.99529402,3194.7,3194.6,2.18161472]
[1765452809722,2.02089402,3194.7,3194.6,2.18161472]
[1765452809923,0.99529402,3194.7,3194.6,2.18161472]
[1765452810514,2.02089402,3194.7,3194.6,2.18161472]
[1765452811323,3.14030666,3194.7,3194.6,2.18161472]
[1765452811518,3.14030666,3194.7,3194.6,1.16761472]
[1765452811918,3.14030666,3194.7,3194.6,2.18161472]
[1765452815920,3.14030666,3194.7,3194.6,1.16761472]
[1765452816124,3.14030666,3194.7,3194.6,2.18161472]
[1765452816815,3.14030666,3194.7,3194.6,0.15961472]
[1765452820330,5.86120666,3194.7,3194.6,0.15961472]
[1765452823627,4.83560666,3194.7,3194.6,2.12971472]
[1765452823827,3.71619402,3194.7,3194.6,2.12971472]
[1765452824428,2.72459402,3194.7,3194.6,2.12971472]
[1765452824628,3.67099402,3194.7,3194.6,2.12971472]
[1765452825632,3.2078,3195.2,3195.1,2.12657]
[1765452826230,2.06581264,3195.6,3195.5,2.68005]
[1765452826831,1.11941264,3195.9,3195.8,2.12654]
[1765452827136,2.06831901,3195.9,3195.8,2.12654]
[1765452828838,0.00250637,3195.9,3195.8,2.12654]
[1765452829435,1.80612511,3196.2,3196.1,1.9701]
[1765452830532,1.80845433,3196.2,3196.1,2.12652]
[1765452831039,1.53261745,3196.2,3196.1,8.12652]
[1765452831234,1.53261745,3196.2,3196.1,12.04173583]
[1765452831537,0.00469403,3196.5,3196.4,2.12651]
[1765452831740,0.00469403,3196.5,3196.4,5.33431]
[1765452832637,0.00852851,3196.5,3196.4,5.33431]
[1765452837435,2.52882851,3196.5,3196.4,5.33431]
[1765452837641,3.64824115,3196.5,3196.4,4.35221]
[1765452838140,2.52882851,3196.5,3196.4,5.33431]
[1765452838544,3.64824115,3196.5,3196.4,0.15641]
[1765452840748,3.64824115,3196.5,3196.4,2.12651]
[1765452840943,3.64824115,3196.5,3196.4,1.14441]
[1765452841145,3.64824115,3196.5,3196.4,0.15641]
[1765452842047,3.64824115,3196.5,3196.4,1.14441]
[1765452842549,3.64824115,3196.5,3196.4,0.15641]
[1765452842751,3.67696883,3196.5,3196.4,0.15641]
[1765452844648,3.67696883,3196.5,3196.4,1.14441]
[1765452845548,3.67696883,3196.5,3196.4,0.15641]
[1765452849547,3.67696883,3196.5,3196.4,1.28961]
[1765452850151,3.67696883,3196.5,3196.4,0.15641]
[1765452850953,3.67696883,3196.5,3196.4,1.28961]
[1765452851348,3.67696883,3196.5,3196.4,2.40261]
[1765452852458,3.10136883,3196.5,3196.4,2.40261]
[1765452853354,1.15666883,3196.5,3196.4,2.40261]
[1765452853952,2.17866883,3196.5,3196.4,2.40261]
[1765452854352,1.15666883,3196.5,3196.4,2.40261]
[1765452854555,2.17866883,3196.5,3196.4,2.40261]
[1765452855659,2.17866883,3196.5,3196.4,6.31782583]
[1765452856352,3.28856883,3196.5,3196.4,6.31782583]
[1765452856760,0.00852851,3196.5,3196.4,6.31782583]
[1765452856962,1.15666883,3196.5,3196.4,6.31782583]
[1765452857854,2.17866883,3196.5,3196.4,6.31782583]
[1765452858462,2.17866883,3196.5,3196.4,2.40261]
[1765452858761,0.00852851,3196.5,3196.4,5.61041]
[1765452859365,2.17866883,3196.5,3196.4,5.61041]
[1765452859661,3.28856883,3196.5,3196.4,5.61041]
[1765452859862,3.28856883,3196.5,3196.4,9.53143582]
[1765452860365,2.17866883,3196.5,3196.4,9.53159734]
[1765452860753,3.28856883,3196.5,3196.4,9.53159734]
[1765452861063,3.92286883,3196.5,3196.4,9.53159734]
[1765452861255,0.00852851,3196.5,3196.4,9.53159734]
[1765452861660,0.00852851,3196.5,3196.4,5.61041]
[1765452863453,1.15666883,3196.5,3196.4,5.61041]
[1765452863654,0.00852851,3196.5,3196.4,5.61041]
[1765452866968,3.9021,3196.8,3196.7,1.20169]
[1765452867157,3.9021,3196.8,3196.7,0.15639]
[1765452867569,8.25804032,3196.8,3196.7,0.15639]
[1765452868069,8.26047691,3196.8,3196.3,3.92008871]
[1765452868267,3.28004032,3196.4,3196.3,5.12179871]
[1765452868669,3.28004032,3196.4,3196.3,6.21619871]
[1765452869163,3.28004032,3196.4,3196.3,0.15641]
[1765452869370,3.28004032,3196.4,3196.3,4.07818904]
[1765452869768,3.28004032,3196.4,3196.3,5.12348904]
[1765452870073,3.28004032,3196.4,3196.3,4.07818904]
[1765452870568,3.28004032,3196.4,3196.3,0.15641]
[1765452870775,2.1319,3196.3,3196.2,3.92177904]
[1765452870974,2.1319,3196.2,3196.1,0.00469403]
[1765452871280,3.28004032,3196.2,3196.1,0.00469403]
[1765452872671,3.28004032,3196.2,3196.1,1.04999403]
[1765452872880,3.28004032,3196.2,3196.1,2.30081403]
[1765452873482,3.28004032,3196.2,3196.1,0.16111403]
[1765452876081,4.42818064,3196.2,3196.1,0.16111403]
[1765452878782,2.0163,3195.7,3195.6,3.92177904]
[1765452878990,2.5904,3195.5,3195.4,0.15645]
[1765452879284,3.73854032,3195.5,3195.4,0.15645]
[1765452880490,3.73854032,3195.5,3195.4,1.15045]
[1765452881591,3.73854032,3195.5,3195.4,0.15645]
[1765452882985,2.0163,3195.2,3195.1,0.00469403]
[1765452883185,4.31258064,3195.2,3195.1,0.00469403]
[1765452883387,3.16444032,3195.2,3195.1,0.00469403]
[1765452883692,3.16444032,3195.2,3195.1,0.99869403]
[1765452884288,3.16444032,3195.2,3195.1,2.04379403]
[1765452884492,3.16444032,3195.2,3195.1,2.20026403]
[1765452886495,3.16444032,3195.2,3195.1,1.15516403]
[1765452886995,3.16444032,3195.2,3195.1,0.16116403]
[1765452887703,3.16444032,3195.2,3195.1,1.15516403]
[1765452888695,1.8286,3195.4,3195.3,2.0391]
[1765452888896,4.99304032,3195.4,3195.3,2.0391]
[1765452889195,4.99304032,3195.4,3195.3,0.994]
[1765452889496,4.99304032,3195.4,3195.3,1.15046]
[1765452890999,4.99304032,3195.4,3195.3,0.15646]
[1765452893897,4.99304032,3195.4,3195.3,1.15046]
[1765452894090,4.99304032,3195.4,3195.3,0.15646]
[1765452895587,4.99304032,3195.4,3195.3,2.19556]
[1765452895898,4.99304032,3195.4,3195.3,1.15046]
[1765452896598,4.99304032,3195.4,3195.3,2.19556]
[1765452896901,4.99304032,3195.4,3195.3,1.15046]
[1765452897297,4.99304032,3195.4,3195.3,0.15646]
[1765452898799,4.99304032,3195.4,3195.3,1.15046]
[1765452898995,3.95224032,3195.4,3195.3,2.19556]
[1765452899399,4.99304032,3195.4,3195.3,2.19556]
[1765452901804,3.95224032,3195.4,3195.3,2.19556]
[1765452902305,2.97674032,3195.4,3195.3,2.19556]
[1765452903400,4.99304032,3195.4,3195.3,2.19556]
[1765452903606,4.99304032,3195.4,3195.3,6.09986077]
[1765452903909,4.99304032,3195.4,3195.3,2.19556]
[1765452904805,3.8449,3195.4,3195.3,2.19556]
[1765452905309,2.8041,3195.4,3195.3,2.19556]
[1765452905499,2.8041,3195.4,3195.3,6.09986077]
[1765452905903,1.8286,3195.4,3195.3,6.09986077]
[1765452906508,2.8041,3195.4,3195.3,6.09986077]
[1765452907301,3.922,3195.4,3195.3,6.09986077]
[1765452908001,3.922,3195.4,3195.3,5.05476077]
[1765452908202,3.922,3195.4,3195.3,5.19456077]
[1765452910011,3.922,3195.4,3195.3,6.25466077]
[1765452910402,1.8286,3195.4,3195.3,6.25466077]
[1765452910707,1.8286,3195.4,3195.3,2.35036]
[1765452910908,2.9649,3195.4,3195.3,2.35036]
[1765452912408,2.9649,3195.4,3195.3,6.27056688]
[1765452914616,4.0092,3195.4,3195.3,6.27056688]
[1765452915514,1.8286,3195.4,3195.3,6.27056688]
[1765452915813,2.8707,3195.4,3195.3,6.27056688]
[1765452916016,2.8707,3195.4,3195.3,2.35036]
[1765452916512,2.8707,3195.4,3195.3,6.27109349]
[1765452917015,2.8707,3195.4,3195.3,2.35036]
[1765452918819,3.915,3195.4,3195.3,2.35036]
[1765452920717,3.915,3195.4,3195.3,6.27260536]
[1765452922017,1.8286,3195.4,3195.3,2.35036]
[1765452922216,2.8707,3195.4,3195.3,2.35036]
[1765452922718,3.915,3195.4,3195.3,1.29026]
[1765452923311,3.915,3195.4,3195.3,2.34176]
[1765452926420,3.915,3195.4,3195.3,0.15646]
[1765452927423,3.915,3195.4,3195.3,1.21686]
[1765452929727,3.915,3195.4,3195.3,2.26836]
[1765452939935,3.915,3195.4,3195.3,1.21686]
[1765452940435,3.915,3195.4,3195.3,2.24036]
[1765452941138,1.8286,3195.4,3195.3,2.24036]
[1765452944433,3.8486,3195.4,3195.3,2.12536]
[1765452946734,3.8486,3195.4,3195.3,1.10186]
[1765452949530,3.8486,3195.4,3195.3,0.15646]
[1765452951235,3.8486,3195.4,3195.3,4.08860469]
[1765452951637,3.8486,3195.4,3195.3,0.15646]
[1765452959548,2.02,3195.2,3195.1,0.00469403]
[1765452962949,2.6242,3195.0,3194.9,0.15648]
[1765452963149,2.02,3194.7,3194.6,3.21091472]
[1765452963351,3.14005464,3194.7,3194.6,3.36741472]
[1765452966446,3.14005464,3194.7,3194.6,0.15961472]
[1765452966750,3.16957484,3194.7,3194.6,0.15961472]
[1765452970955,3.16957484,3194.7,3194.6,2.01111472]
[1765452971161,2.13857484,3194.7,3194.6,2.01111472]
[1765452971353,3.03867484,3194.7,3194.6,1.12131472]
[1765452972364,3.03867484,3194.7,3194.6,0.15961472]
[1765452975669,3.03867484,3194.7,3194.6,1.02801472]
[1765452977272,1.8891,3194.7,3194.6,1.91301472]
[1765452977471,3.03867484,3194.7,3194.6,1.91301472]
[1765452977966,3.03867484,3194.7,3194.6,1.02801472]
[1765452982976,3.03867484,3194.7,3194.6,1.91301472]
[1765452983470,0.9034,3195.0,3194.9,1.90988]
[1765452983877,4.1112,3195.0,3194.9,1.90988]
[1765452984173,5.5201,3195.0,3194.9,1.90988]
[1765452984477,5.5201,3195.0,3194.9,1.02488]
[1765452991578,5.5201,3195.0,3194.9,0.15648]
[1765452991781,6.66967484,3195.0,3194.9,0.15648]
[1765452991981,5.5201,3195.0,3194.9,0.15648]
[1765452992470,6.66967484,3195.0,3194.9,0.15648]
[1765452992667,6.66967484,3195.0,3194.9,1.02488]
[1765452993165,6.66967484,3195.0,3194.9,0.15648]
[1765452993775,8.52947484,3195.0,3194.9,0.15648]
[1765452999475,8.52947484,3195.0,3194.9,1.79968]
[1765452999676,8.52947484,3195.0,3194.9,0.98558]
[1765453000087,8.52947484,3195.0,3194.9,0.15648]
[1765453003096,9.67904968,3195.0,3194.9,0.15648]
[1765453004297,8.52947484,3195.0,3194.9,0.15648]
[1765453010703,9.67904968,3195.0,3194.9,0.15648]
[1765453011705,7.3799,3195.0,3194.9,0.15648]
[1765453011907,9.67904968,3195.0,3194.9,0.15648]
[1765453013007,8.52947484,3195.0,3194.9,0.15648]
[1765453016210,7.3799,3195.0,3194.9,1.79968]
[1765453016413,8.52947484,3195.0,3194.9,1.79968]
[1765453016716,8.52947484,3195.0,3194.9,0.98558]
[1765453018214,8.52947484,3195.0,3194.9,0.15648]
[1765453026917,8.52947484,3195.0,3194.9,0.98558]
[1765453028717,7.3799,3195.0,3194.9,0.98558]
[1765453030423,3.6473,3195.0,3194.9,1.75648]
[1765453030619,2.5785,3195.0,3194.9,1.75648]
[1765453030926,3.5377,3195.0,3194.9,0.98558]
[1765453031114,3.5377,3195.0,3194.9,1.75648]
[1765453032223,4.65811617,3195.0,3194.9,0.15648]
[1765453035224,4.65811617,3195.0,3194.9,4.09371119]
[1765453037824,4.65811617,3195.0,3194.9,4.85121119]
[1765453039128,4.65811617,3195.0,3194.9,4.09371119]
[1765453040829,4.65811617,3195.0,3194.9,4.85121119]
[1765453042432,3.5377,3195.0,3194.9,5.61861119]
[1765453043838,1.8598,3195.0,3194.9,5.61861119]
[1765453044032,1.8598,3195.0,3194.9,1.68138]
[1765453044733,0.25573315,3195.0,3194.9,8.80179617]
[1765453044927,0.00469403,3195.5,3195.4,1.68136]
[1765453045127,0.00469403,3195.5,3195.4,8.82430737]
[1765453045527,0.00469403,3195.5,3195.4,4.88916]
[1765453046334,0.00469403,3195.5,3195.4,8.82110441]
[1765453047434,0.00469403,3195.5,3195.4,4.88916]
[1765453051539,4.03e-06,3195.5,3195.4,4.88916]
[1765453052037,4.4012,3196.5,3196.4,1.68131]
[1765453052241,0.77253659,3196.8,3196.7,1.51079]
[1765453052940,1.52803659,3196.8,3196.7,1.76555765]
[1765453053441,1.52803659,3196.8,3196.7,1.51079]
[1765453053637,1.52803659,3196.8,3196.7,1.76109067]
[1765453053638,0.00243659,3196.8,3196.7,1.76109067]
[1765453054238,0.00243659,3196.8,3196.7,1.51079]
[1765453054641,0.77253659,3196.8,3196.7,1.51079]
[1765453055346,0.77253659,3196.8,3196.7,1.76140622]
[1765453055542,0.77253659,3196.8,3196.7,1.51079]
[1765453057644,0.00243659,3196.8,3196.7,1.51079]
[1765453058552,0.00243659,3196.8,3196.7,1.7579354]
[1765453058747,0.00243659,3196.8,3196.7,1.51079]
[1765453058947,0.90403659,3196.8,3196.7,1.51079]
[1765453061254,1.79223659,3196.8,3196.7,1.51079]
[1765453062554,0.90403659,3196.8,3196.7,1.51079]
[1765453063056,0.00243659,3196.8,3196.7,1.51079]
[1765453064156,0.90403659,3196.8,3196.7,1.51079]
[1765453064856,0.90403659,3196.8,3196.7,4.71859]
[1765453068047,0.90403659,3196.8,3196.7,1.51079]
[1765453068247,0.90403659,3196.8,3196.7,4.71859]
[1765453068658,1.79223659,3196.8,3196.7,4.71859]
[1765453069549,0.90403659,3196.8,3196.7,4.71859]
[1765453069752,0.00243659,3196.8,3196.7,4.71859]
[1765453080473,2.90099403,3197.1,3196.7,4.71859]
[1765453080474,1.97877062,3197.1,3197.0,1.66778]
[1765453080673,5.4209,3198.0,3197.9,0.91203]
[1765453081171,5.4209,3198.0,3197.9,0.15633]
[1765453081569,5.42367767,3198.0,3197.9,0.15886868]
[1765453082572,2.21587767,3198.0,3197.9,0.15886868]
[1765453087770,1.8221,3197.7,3197.6,7.13358226]
[1765453087976,1.8221,3197.7,3197.6,7.28993226]
[1765453088272,1.8221,3197.7,3197.6,3.36415]
[1765453088876,1.8221,3197.7,3197.6,3.36815113]
[1765453089376,1.8221,3197.7,3197.6,7.29393339]
[1765453091276,1.8221,3197.7,3197.6,3.36815113]
[1765453095278,1.8221,3197.7,3197.6,7.29393339]
[1765453098678,1.8221,3197.7,3197.6,3.36815113]
[1765453099873,2.96899969,3197.7,3197.6,3.36815113]
[1765453100491,2.96899969,3197.7,3197.6,7.29320956]
[1765453100880,2.96899969,3197.7,3197.6,3.36815113]
[1765453101083,1.14689969,3197.7,3197.6,3.36815113]
[1765453104380,1.14689969,3197.7,3197.6,0.16035113]
[1765453104589,7.14689969,3197.7,3196.9,5.60867441]
[1765453104787,1.14689969,3197.0,3196.7,3.2078]
[1765453105086,1.14689969,3196.8,3196.7,3.2078]
[1765453105287,3.2078,3197.5,3197.1,0.15637]
[1765453105483,1.14689969,3197.2,3197.1,0.15637]
[1765453105686,1.14689969,3197.2,3197.1,0.15963983]
[1765453109390,2.29379938,3197.2,3197.1,0.15963983]
[1765453109688,2.29379938,3197.2,3196.7,3.2078]
[1765453109893,1.14689969,3196.8,3196.7,3.36419]
[1765453110687,1.14689969,3196.8,3196.7,3.36679174]
[1765453113796,1.14689969,3196.8,3196.7,0.15899174]
[1765453114799,7.14689969,3196.8,3196.4,0.00469403]
[1765453114996,4.35469969,3197.0,3196.4,0.00469403]
[1765453114997,4.35469969,3196.5,3196.4,0.00469403]
[1765453115796,4.35469969,3196.5,3196.4,0.00778124]
[1765453121905,5.50159938,3196.5,3195.8,3.2078]
[1765453122102,1.14689969,3195.9,3195.8,3.36424]
[1765453122701,1.14689969,3195.9,3195.8,3.36738293]
[1765453123097,1.14689969,3196.0,3195.8,3.36738293]
[1765453123298,1.14689969,3195.9,3195.8,3.36738293]
[1765453124996,2.6064,3196.1,3196.0,0.15643]
[1765453125202,3.75329969,3196.1,3196.0,0.15643]
[1765453136409,2.6064,3196.1,3196.0,0.15643]
[1765453136608,2.6064,3196.1,3196.0,4.08001487]
[1765453137107,2.6064,3196.1,3196.0,0.15643]
[1765453138607,0.00469403,3196.2,3196.1,0.15642]
[1765453139008,0.00469403,3196.2,3196.1,4.08615147]
[1765453139204,1.15159372,3196.2,3196.1,4.08615147]
[1765453139410,0.00469403,3196.2,3196.1,4.08615147]
[1765453139712,0.00469403,3196.2,3196.1,0.15642]
[1765453143715,1.15159372,3196.2,3196.1,0.15642]
[1765453143913,0.00469403,3196.2,3196.1,0.15642]
[1765453145116,1.15159372,3196.2,3196.1,0.15642]
[1765453149321,0.00469403,3196.2,3196.1,0.15642]
[1765453149520,0.00469403,3196.2,3196.1,3.36422]
[1765453153921,1.76132763,3196.3,3196.2,0.15642]
[1765453154216,0.78831183,3196.3,3196.2,1.2757095]
[1765453154523,3.2078,3197.3,3197.2,0.15637]
[1765453159724,1.1192895,3197.4,3197.3,0.15636]
[1765453173335,7.1192895,3197.4,3196.7,3.2078]
[1765453173541,1.1192895,3196.8,3196.7,3.2078]
[1765453174637,1.1192895,3196.8,3196.7,3.36419]
[1765453174841,1.1192895,3196.8,3196.7,0.15639]
[1765453176744,1.1192895,3196.9,3196.8,0.15639]
[1765453181551,2.1927,3197.1,3197.0,0.15638]
[1765453181752,3.3119895,3197.1,3197.0,0.15638]
[1765453181956,1.1192895,3197.1,3197.0,0.15638]
[1765453188163,5.0165,3197.3,3197.1,0.15637]
[1765453189263,5.0165,3197.3,3197.2,0.15637]
[1765453189562,6.1357895,3197.3,3197.2,0.15637]
[1765453196164,2.9279895,3197.3,3197.2,0.15637]
[1765453196369,6.1357895,3197.3,3197.2,0.15637]
[1765453201268,5.0165,3197.3,3197.2,0.15637]
[1765453203575,5.0165,3197.3,3197.2,4.08679428]
[1765453204579,1.8087,3197.3,3197.2,0.15637]
[1765453204976,0.00469403,3197.6,3197.5,0.15635]
[1765453214883,1.15205421,3197.6,3197.5,0.15635]
[1765453225494,4.35985421,3197.6,3197.5,0.15635]
[1765453226193,3.21249403,3197.6,3197.5,0.15635]
[1765453226391,4.35985421,3197.6,3197.5,0.15635]
[1765453233893,1.15205421,3197.6,3197.5,0.15635]
[1765453234093,4.35985421,3197.6,3197.5,0.15635]
[1765453245421,3.21249403,3197.6,3197.5,0.15635]
[1765453245620,4.35985421,3197.6,3197.5,0.15635]
[1765453260525,0.00469403,3197.6,3197.5,5.23843452]
[1765453260928,0.00469403,3197.6,3197.5,1.30371018]
[1765453261125,0.00469403,3197.6,3197.5,0.15635]
[1765453263935,2.28129403,3197.6,3197.5,0.15635]
[1765453264437,5.48909403,3197.6,3197.5,4.08433545]
[1765453264841,5.48909403,3197.6,3197.5,0.15635]
[1765453274845,6.60807084,3197.6,3197.5,0.15635]
[1765453277644,6.60807084,3197.6,3197.2,0.00469403]
[1765453277645,10.30007084,3197.6,3196.9,0.15638]
[1765453277849,4.32677681,3197.0,3196.9,0.15638]
[1765453287554,6.68117681,3197.0,3196.9,0.15638]
[1765453296667,6.68117681,3197.0,3196.6,0.00469403]
[1765453296965,1.11897681,3196.7,3196.6,0.00469403]
[1765453302165,5.5622,3197.0,3196.6,0.00469403]
[1765453302373,1.11897681,3196.7,3196.6,0.00469403]
[1765453305877,1.11897681,3196.7,3196.6,0.16109403]
[1765453306879,3.2078,3196.8,3196.7,0.15639]
[1765453307079,2.3544,3197.0,3196.9,0.15638]
[1765453314482,5.5622,3197.0,3196.9,0.15638]
[1765453314679,2.3544,3197.0,3196.9,0.15638]
[1765453314882,5.5622,3197.0,3196.9,0.15638]
[1765453315289,2.3544,3197.0,3196.9,0.15638]
[1765453315489,5.5622,3197.0,3196.9,0.15638]
[1765453330800,2.3544,3197.0,3196.9,0.15638]
[1765453341711,3.50189111,3197.0,3196.9,0.15638]
[1765453341906,4.64938222,3197.0,3196.9,4.08216923]
[1765453342104,3.50189111,3197.0,3196.9,4.08216923]
[1765453342305,3.50189111,3197.0,3196.9,0.15638]
[1765453343412,4.64938222,3197.0,3196.9,0.15638]
[1765453343617,7.85718222,3197.0,3196.9,0.15638]
[1765453344007,7.85718222,3197.0,3196.6,0.00469403]
[1765453344206,7.85718222,3197.0,3196.6,0.16109403]
[1765453344207,1.14749111,3196.7,3196.6,0.16109403]
[1765453346812,4.35529111,3196.7,3196.6,0.16109403]
[1765453347412,6.37659111,3196.7,3196.6,0.16109403]
[1765453358922,19.12947222,3196.7,3196.2,2.80272448]
[1765453359124,1.14749111,3196.2,3195.8,0.00314293]
[1765453359314,4.35529111,3195.9,3195.8,0.00314293]
[1765453363023,4.35529111,3195.9,3195.5,0.00469403]
[1765453363223,1.14749111,3195.6,3195.4,0.15646]
[1765453363422,3.2078,3195.5,3195.4,0.15646]
[1765453363919,3.21164526,3195.5,3195.4,0.15939302]
[1765453364517,3.21164526,3195.5,3195.4,0.00293302]
[1765453365316,1.14749111,3194.9,3194.8,0.15649]
[1765453366222,1.14749111,3194.9,3194.8,0.16040487]
[1765453369525,3.61939111,3194.9,3194.8,0.16040487]
[1765453374226,2.4719,3194.9,3194.8,0.16040487]
[1765453389542,2.4719,3194.9,3194.8,4.07506096]
[1765453391440,2.4719,3194.9,3194.8,0.16040487]
[1765453394142,2.09365,3194.9,3194.8,0.16040487]
[1765453394442,0.00384526,3195.5,3195.4,0.15646]
[1765453403959,0.00384526,3195.5,3195.4,3.36426]
[1765453404354,0.00384526,3195.5,3195.4,7.28947318]
[1765453404757,0.00384526,3195.5,3195.4,3.36426]
[1765453407764,5.26e-06,3195.5,3195.4,3.36426]
[1765453408063,2.7818,3195.9,3195.8,0.15644]
[1765453408262,2.7818,3195.9,3195.8,1.27632864]
[1765453408464,3.2078,3196.4,3196.3,0.15641]
[1765453408863,9.2078,3196.4,3196.3,0.15641]
[1765453409057,9.21116248,3196.4,3196.3,0.15641]
[1765453413869,3.21116248,3196.4,3196.3,0.15641]
[1765453414069,9.21116248,3196.4,3196.3,0.15641]
[1765453414269,3.21116248,3196.4,3196.3,0.15641]
[1765453418465,4.33105112,3196.4,3196.3,0.15641]
[1765453423774,3.21116248,3196.4,3196.3,0.15641]
[1765453427571,0.00336248,3196.4,3196.3,0.15641]
[1765453429676,2.47076338,3196.6,3196.5,0.1564]
[1765453429875,1.98938888,3196.6,3196.5,3.3642]
[1765453430071,1.26686888,3196.6,3196.5,9.3642]
[1765453430267,0.63485888,3196.6,3196.5,9.3642]
[1765453430671,8.88e-06,3196.6,3196.5,9.3642]
[1765453430973,0.00220179,3196.6,3196.5,9.3642]
[1765453431177,0.00220179,3196.6,3196.5,14.96869107]
[1765453431772,0.00219291,3196.6,3196.5,14.96869107]
[1765453434574,0.00219291,3196.6,3196.5,9.3642]
[1765453440383,0.00219291,3196.6,3196.5,6.1564]
[1765453440576,0.00219291,3196.6,3196.5,9.3642]
[1765453442372,0.00219291,3196.6,3196.5,10.48408864]
[1765453444186,0.00046238,3196.6,3196.5,10.48408864]
[1765453445086,0.00046238,3196.6,3196.5,9.3642]
[1765453445279,0.00046238,3196.6,3196.5,3.3642]
[1765453447988,0.00046238,3196.6,3196.5,15.6752]
[1765453450684,0.00046238,3196.6,3196.5,21.27969107]
[1765453452292,0.00469403,3196.7,3196.6,0.1564]
[1765453452293,0.00108729,3196.7,3196.6,0.1564]
[1765453453195,0.00475126,3196.7,3196.6,0.1564]
[1765453454092,0.00475126,3196.7,3196.6,5.76089107]
[1765453456397,0.00475126,3196.7,3196.6,0.1564]
[1765453458697,0.00475126,3196.7,3196.6,1.30366616]
[1765453460795,0.00475126,3196.7,3196.6,0.1564]
[1765453461596,0.00475126,3196.7,3196.6,1.30366616]
[1765453462597,0.00475126,3196.7,3196.6,0.1564]
[1765453463803,1.26e-06,3196.7,3196.6,0.1564]
[1765453465103,1.26e-06,3196.7,3196.6,3.3642]
[1765453496723,1.26e-06,3196.7,3196.6,7.29787357]
[1765453497322,1.26e-06,3196.7,3196.6,3.3642]
[1765453498716,1.26e-06,3196.7,3196.6,0.1564]
[1765453500929,0.4292,3196.5,3196.4,0.15641]
[1765453501138,1.57646616,3196.5,3196.4,0.15641]
[1765453504724,0.4292,3196.5,3196.4,0.15641]
[1765453504919,0.4292,3196.5,3196.4,3.36421]
[1765453510224,0.4292,3196.5,3196.4,0.15641]
[1765453510625,0.4292,3196.5,3196.0,3.21249403]
[1765453510826,1.14726616,3196.1,3196.0,3.21249403]
[1765453511535,1.14726616,3196.1,3196.0,3.36892403]